bitfinex-derivatives/quotes_BTCF0:USTF0_20240923
["timestamp","ask_amount","ask_price","bid_price","bid_amount"]
[1727102445956,0.764799,63219.0,63214.0,0.079092]
[1727102446341,0.56442647,63216.0,63213.0,0.079093]
[1727102446538,0.685712,63219.0,63206.0,0.3608]
[1727102446539,0.56538647,63219.0,63218.0,0.079087]
[1727102446842,0.3608,63231.0,63230.0,0.079072]
[1727102447049,0.0037,63240.0,63222.0,0.079082]
[1727102447050,0.56442647,63223.0,63222.0,0.079082]
[1727102447748,0.3608,63236.0,63233.0,0.079067]
[1727102447943,0.685712,63236.0,63234.0,0.079066]
[1727102448147,0.56442647,63235.0,63234.0,0.079067]
[1727102448647,0.88933847,63235.0,63234.0,0.269067]
[1727102448849,0.88933847,63235.0,63234.0,0.079067]
[1727102449746,0.90233847,63235.0,63234.0,0.270067]
[1727102449953,0.013,63235.0,63234.0,0.269067]
[1727102450457,0.90233847,63235.0,63234.0,0.269067]
[1727102450747,0.92797415,63235.0,63229.0,0.19]
[1727102450961,0.3608,63230.0,63221.0,0.01620752]
[1727102451141,0.43223202,63235.0,63213.0,0.19]
[1727102451142,0.56442647,63222.0,63213.0,0.19]
[1727102451348,0.56442647,63221.0,63216.0,0.079088]
[1727102451651,0.56442647,63221.0,63213.0,0.19]
[1727102451948,0.91497998,63221.0,63214.0,0.079092]
[1727102452151,0.91497998,63221.0,63216.0,0.079089]
[1727102452452,0.91497998,63221.0,63213.0,0.19]
[1727102452453,0.99406298,63221.0,63213.0,0.19]
[1727102452639,1.59014805,63221.0,63207.0,0.19]
[1727102452844,0.64288705,63208.0,63207.0,0.20567279]
[1727102453143,0.64288705,63208.0,63207.0,0.28477379]
[1727102453144,0.88833847,63208.0,63207.0,0.28477379]
[1727102453547,0.96679905,63208.0,63207.0,0.28477379]
[1727102453747,0.56342647,63208.0,63207.0,0.28477379]
[1727102454079,0.56342647,63208.0,63207.0,0.64557379]
[1727102454550,0.07846058,63212.0,63207.0,0.57147279]
[1727102454847,0.40337258,63212.0,63211.0,0.079096]
[1727102455049,0.40337258,63212.0,63207.0,0.57147279]
[1727102455050,0.56342647,63209.0,63207.0,0.21067279]
[1727102455247,0.64194118,63208.0,63207.0,0.01567279]
[1727102455451,0.58907181,63208.0,63207.0,0.194]
[1727102455751,0.91398381,63208.0,63207.0,0.194]
[1727102455953,0.91398544,63208.0,63207.0,0.194]
[1727102456253,0.99308444,63208.0,63207.0,0.005]
[1727102456455,1.06753758,63208.0,63207.0,0.005]
[1727102457158,1.75391032,63208.0,63207.0,0.005]
[1727102457347,1.83300932,63208.0,63207.0,0.005]
[1727102457660,0.079105,63204.0,63199.0,0.08148328]
[1727102457850,1.56693463,63208.0,63199.0,0.00237328]
[1727102457851,0.92422647,63200.0,63199.0,0.00237328]
[1727102458154,1.00333547,63200.0,63199.0,0.00237328]
[1727102458369,1.24913847,63200.0,63199.0,0.00237328]
[1727102458561,1.32724747,63200.0,63199.0,0.00237328]
[1727102459456,1.32724747,63200.0,63187.0,0.19]
[1727102459457,0.079118,63194.0,63187.0,0.19]
[1727102459649,1.85013847,63200.0,63187.0,0.19]
[1727102459650,0.3608,63188.0,63187.0,0.19]
[1727102459845,0.92422647,63188.0,63187.0,0.19]
[1727102460053,1.24913847,63188.0,63187.0,0.269126]
[1727102460259,0.88833847,63188.0,63187.0,0.269126]
[1727102460743,0.88833847,63188.0,63187.0,0.28498073]
[1727102461150,0.3598,63194.0,63193.0,0.079118]
[1727102461446,0.3598,63194.0,63193.0,0.269118]
[1727102461652,0.92322647,63194.0,63193.0,0.269118]
[1727102461846,0.3598,63194.0,63193.0,0.269118]
[1727102462851,0.3608,63207.0,63202.0,0.079106]
[1727102463059,0.685712,63207.0,63206.0,0.19]
[1727102463450,1.24913847,63207.0,63206.0,0.19]
[1727102463645,0.92422647,63207.0,63206.0,0.26910199]
[1727102464153,0.92422647,63207.0,63206.0,0.18999999]
[1727102464343,1.24913847,63207.0,63206.0,0.18999999]
[1727102464547,1.24913847,63207.0,63206.0,0.2136963]
[1727102464950,1.25713847,63207.0,63206.0,0.1355943]
[1727102465151,1.25713847,63207.0,63206.0,0.001]
[1727102465380,1.25713847,63207.0,63201.0,0.01]
[1727102465381,0.079106,63203.0,63201.0,0.01]
[1727102465552,0.56342647,63202.0,63201.0,0.01]
[1727102465853,0.58907627,63202.0,63201.0,0.01]
[1727102466058,0.91398827,63202.0,63201.0,0.279108]
[1727102467655,0.91398827,63202.0,63201.0,0.2]
[1727102467862,0.56342647,63202.0,63201.0,0.279108]
[1727102468252,0.56442647,63202.0,63201.0,0.279108]
[1727102468857,0.001,63202.0,63201.0,0.279108]
[1727102469358,0.079093,63214.0,63201.0,0.279108]
[1727102469359,0.09431539,63213.0,63212.0,0.079094]
[1727102469567,0.02564513,63213.0,63212.0,0.19]
[1727102469856,0.685712,63220.0,63218.0,0.079087]
[1727102469857,0.09446374,63219.0,63218.0,0.079087]
[1727102470057,0.12486236,63230.0,63218.0,0.079087]
[1727102470058,0.09446374,63223.0,63219.0,0.3608]
[1727102470247,0.56342647,63222.0,63219.0,0.3608]
[1727102470453,0.56342647,63229.0,63228.0,0.079074]
[1727102470762,0.58906358,63229.0,63228.0,0.439874]
[1727102471055,0.079076,63227.0,63219.0,0.3608]
[1727102471259,0.56342647,63220.0,63219.0,0.3598]
[1727102471454,0.58906774,63220.0,63219.0,0.3598]
[1727102471654,0.88833847,63220.0,63219.0,0.3598]
[1727102472053,0.88833847,63220.0,63219.0,0.438886]
[1727102472251,0.56242647,63220.0,63219.0,0.438886]
[1727102472959,0.09442581,63227.0,63226.0,0.079077]
[1727102473157,0.09442581,63227.0,63219.0,0.3598]
[1727102473158,0.56242647,63223.0,63219.0,0.3598]
[1727102473361,0.014,63229.0,63226.0,0.079077]
[1727102473556,0.56242647,63227.0,63226.0,0.19]
[1727102473754,0.56242647,63227.0,63226.0,0.269077]
[1727102473954,0.88733847,63227.0,63226.0,0.269077]
[1727102474760,0.88733847,63227.0,63226.0,0.19]
[1727102475063,0.40044003,63227.0,63219.0,0.3598]
[1727102475363,0.56242647,63220.0,63219.0,0.3598]
[1727102475861,0.96642247,63220.0,63219.0,0.3598]
[1727102476456,0.91298159,63220.0,63210.0,0.19]
[1727102476656,0.079091,63215.0,63210.0,0.19]
[1727102476867,0.02564407,63219.0,63210.0,0.19]
[1727102476868,0.56242647,63211.0,63210.0,0.19]
[1727102477361,0.56242647,63211.0,63207.0,0.3608]
[1727102477362,0.88733847,63211.0,63209.0,0.01807715]
[1727102477558,0.56242647,63210.0,63209.0,0.00237301]
[1727102477751,0.56242647,63210.0,63209.0,0.19237301]
[1727102477949,0.96643547,63210.0,63209.0,0.00237301]
[1727102478557,0.88733847,63210.0,63209.0,0.00237301]
[1727102478857,0.88733847,63210.0,63209.0,0.27147101]
[1727102479056,0.3608,63221.0,63209.0,0.19237301]
[1727102479252,0.3608,63221.0,63218.0,0.079086]
[1727102479253,0.685712,63221.0,63218.0,0.079086]
[1727102479570,0.685712,63221.0,63216.0,0.19]
[1727102479571,0.09442581,63225.0,63224.0,0.079079]
[1727102479761,0.41933781,63225.0,63224.0,0.269079]
[1727102479962,0.65685228,63225.0,63224.0,0.269079]
[1727102480356,0.09442581,63225.0,63224.0,0.269079]
[1727102480759,0.09442581,63232.0,63230.0,0.079071]
[1727102480960,0.09442581,63232.0,63231.0,0.079071]
[1727102481568,0.65685228,63232.0,63231.0,0.079071]
[1727102481961,0.09442581,63232.0,63231.0,0.079071]
[1727102482158,0.10842581,63232.0,63231.0,0.080071]
[1727102482467,0.11003462,63241.0,63240.0,0.079059]
[1727102482669,0.43494662,63241.0,63240.0,0.629859]
[1727102482859,0.99737309,63241.0,63240.0,0.629859]
[1727102483059,0.67246109,63241.0,63240.0,0.629859]
[1727102483259,0.11003462,63241.0,63240.0,0.629859]
[1727102483964,0.15665565,63254.0,63240.0,0.629859]
[1727102483965,0.15665565,63254.0,63244.0,0.079054]
[1727102484165,0.15665565,63254.0,63249.0,0.629848]
[1727102485652,0.15665565,63254.0,63253.0,0.079043]
[1727102485855,0.20364951,63274.0,63253.0,0.079043]
[1727102485856,0.3608,63273.0,63258.0,0.079037]
[1727102486064,0.00118035,63259.0,63258.0,0.269037]
[1727102486458,0.19934951,63274.0,63258.0,0.19]
[1727102486652,0.324912,63274.0,63272.0,0.19]
[1727102487065,0.56242647,63273.0,63272.0,0.19]
[1727102487563,0.88733847,63273.0,63272.0,0.19]
[1727102488569,0.0037,63294.0,63272.0,0.19]
[1727102488869,0.324912,63294.0,63287.0,0.19]
[1727102489166,0.3608,63291.0,63287.0,0.19]
[1727102489361,0.56242647,63288.0,63287.0,0.19]
[1727102489758,0.88733847,63288.0,63287.0,0.19]
[1727102490472,0.88733847,63288.0,63287.0,0.269001]
[1727102490664,0.006,63294.0,63287.0,0.19]
[1727102490863,0.330912,63294.0,63293.0,0.5508]
[1727102491167,0.330912,63294.0,63280.0,0.3608]
[1727102491168,0.89333847,63294.0,63289.0,0.19]
[1727102491368,0.330912,63294.0,63289.0,0.19]
[1727102491668,0.56242647,63290.0,63289.0,0.19]
[1727102492172,0.88733847,63290.0,63289.0,0.19]
[1727102492557,0.88733847,63290.0,63289.0,0.191]
[1727102493371,0.88733847,63290.0,63289.0,0.269998]
[1727102493372,0.89333847,63290.0,63289.0,0.269998]
[1727102494065,0.89333847,63290.0,63287.0,0.3608]
[1727102494268,0.19,63288.0,63273.0,0.3608]
[1727102494568,0.474,63289.0,63273.0,0.5508]
[1727102494569,0.48104601,63274.0,63273.0,0.5508]
[1727102494779,0.80595801,63274.0,63273.0,0.629818]
[1727102494964,0.324912,63274.0,63248.0,0.00084]
[1727102495172,0.324912,63274.0,63247.0,0.3608]
[1727102495173,0.3608,63254.0,63252.0,0.19]
[1727102495372,0.3608,63254.0,63253.0,0.079043]
[1727102495874,0.3608,63274.0,63253.0,0.83508]
[1727102496080,0.687712,63274.0,63269.0,0.079022]
[1727102496277,0.687712,63274.0,63270.0,0.079021]
[1727102496473,0.687712,63274.0,63271.0,0.07902]
[1727102496874,0.687712,63274.0,63273.0,0.079018]
[1727102498068,0.685712,63274.0,63273.0,0.079018]
[1727102498269,0.685712,63274.0,63269.0,0.079023]
[1727102498568,0.685712,63274.0,63267.0,0.19]
[1727102498973,0.687712,63274.0,63267.0,0.19]
[1727102499774,0.687712,63274.0,63273.0,0.079018]
[1727102500177,0.685712,63274.0,63273.0,0.079018]
[1727102501677,0.685712,63274.0,63273.0,0.158036]
[1727102501878,0.685712,63274.0,63273.0,0.079018]
[1727102502671,0.686712,63274.0,63273.0,0.079018]
[1727102505385,0.685712,63274.0,63273.0,0.079018]
[1727102505584,0.685712,63274.0,63273.0,0.09459467]
[1727102509175,1.046512,63274.0,63273.0,0.09459467]
[1727102509480,0.685712,63274.0,63273.0,0.09459467]
[1727102509685,0.685712,63274.0,63273.0,0.28459467]
[1727102510077,0.685712,63274.0,63273.0,0.36361267]
[1727102511076,0.685712,63274.0,63273.0,0.28459467]
[1727102511281,0.76361215,63274.0,63273.0,0.09459467]
[1727102511484,0.71133051,63274.0,63273.0,0.09459467]
[1727102511679,0.77321878,63274.0,63273.0,0.09459467]
[1727102511877,0.71133051,63274.0,63273.0,0.09459467]
[1727102512073,2.20809549,63274.0,63269.0,0.19]
[1727102512273,2.20809549,63274.0,63263.0,0.19]
[1727102512274,0.09458834,63271.0,63263.0,0.19]
[1727102512489,0.12020685,63271.0,63267.0,0.079025]
[1727102512785,0.12020685,63271.0,63263.0,0.19]
[1727102512786,0.3608,63268.0,63263.0,0.19]
[1727102512981,0.02561851,63267.0,63266.0,0.079027]
[1727102513288,0.34953051,63267.0,63266.0,0.079027]
[1727102513783,0.324912,63267.0,63266.0,0.079027]
[1727102513986,0.40373868,63267.0,63266.0,0.079027]
[1727102514288,0.324912,63267.0,63266.0,0.079027]
[1727102514686,0.324912,63267.0,63266.0,0.158054]
[1727102514874,0.324912,63267.0,63266.0,0.079027]
[1727102515688,0.326912,63267.0,63266.0,0.079027]
[1727102516482,0.324912,63267.0,63266.0,0.158054]
[1727102516677,0.324912,63267.0,63266.0,0.079027]
[1727102517578,0.324912,63267.0,63266.0,0.09510675]
[1727102518084,0.324912,63267.0,63266.0,0.17413375]
[1727102518285,0.324912,63267.0,63266.0,0.10010675]
[1727102518687,0.324912,63267.0,63266.0,0.17913375]
[1727102518986,0.324912,63267.0,63266.0,0.10010675]
[1727102519192,0.324912,63267.0,63266.0,0.09810675]
[1727102519395,0.324912,63267.0,63266.0,0.17713375]
[1727102519575,0.324912,63267.0,63266.0,0.25616075]
[1727102519780,0.324912,63267.0,63266.0,0.25706557]
[1727102520393,0.324912,63267.0,63266.0,0.38706557]
[1727102521298,0.324912,63267.0,63266.0,0.38806557]
[1727102521790,0.43963743,63280.0,63277.0,0.079013]
[1727102521985,0.43963743,63280.0,63279.0,0.209011]
[1727102522187,0.57884943,63280.0,63279.0,0.288022]
[1727102522391,0.139212,63280.0,63279.0,0.209011]
[1727102522990,0.143212,63280.0,63279.0,0.209011]
[1727102524594,0.139212,63280.0,63279.0,0.209011]
[1727102524782,0.143212,63280.0,63279.0,0.210011]
[1727102525181,0.143212,63280.0,63279.0,0.289022]
[1727102525988,0.143212,63280.0,63279.0,0.210011]
[1727102526488,0.143212,63280.0,63279.0,0.131]
[1727102526489,0.504012,63280.0,63279.0,0.131]
[1727102526694,1.04032869,63280.0,63279.0,0.001]
[1727102526883,1.71220587,63280.0,63279.0,0.001]
[1727102527083,1.71220587,63280.0,63279.0,0.00023609]
[1727102527280,1.04032869,63280.0,63279.0,0.00023609]
[1727102527483,1.64032869,63280.0,63279.0,0.00023609]
[1727102527697,0.079012,63279.0,63272.0,0.079019]
[1727102527880,0.3608,63273.0,63272.0,0.079019]
[1727102528089,0.3608,63273.0,63269.0,0.13]
[1727102528284,0.02562055,63272.0,63269.0,0.13]
[1727102528489,0.02562055,63272.0,63269.0,0.209022]
[1727102528996,0.02562055,63272.0,63269.0,0.13]
[1727102529187,0.02562055,63272.0,63270.0,0.02470894]
[1727102529392,0.02562055,63272.0,63271.0,0.02470896]
[1727102529586,0.49878055,63272.0,63271.0,0.02470896]
[1727102529991,1.09878055,63272.0,63271.0,0.02470896]
[1727102530185,1.09878055,63272.0,63264.0,0.209029]
[1727102530186,0.079022,63270.0,63264.0,0.209029]
[1727102530386,0.3608,63265.0,63264.0,0.209029]
[1727102530587,0.3608,63265.0,63260.0,0.01607881]
[1727102530789,0.06145593,63264.0,63261.0,0.10374368]
[1727102530989,0.06145593,63264.0,63256.0,0.36317097]
[1727102530990,0.06136629,63263.0,63256.0,0.00237097]
[1727102531189,0.07903,63264.0,63257.0,0.02471172]
[1727102531190,0.209038,63258.0,63257.0,0.02471172]
[1727102531397,0.55125632,63258.0,63247.0,0.13]
[1727102531700,0.55125632,63258.0,63247.0,0.079051]
[1727102531701,0.3608,63248.0,63247.0,0.079051]
[1727102531892,0.3608,63258.0,63254.0,0.079041]
[1727102532197,0.3608,63258.0,63253.0,0.13]
[1727102532198,0.439837,63258.0,63253.0,0.13]
[1727102532387,0.439837,63258.0,63249.0,0.13]
[1727102532699,0.3608,63258.0,63256.0,0.006]
[1727102532996,0.3608,63258.0,63237.0,0.079063]
[1727102532997,0.13,63255.0,63231.0,0.00237225]
[1727102533199,0.3608,63241.0,63236.0,0.079064]
[1727102533392,0.3608,63240.0,63236.0,0.079064]
[1727102533696,0.3608,63240.0,63234.0,0.13]
[1727102534005,0.3608,63240.0,63214.0,0.13]
[1727102534006,0.079076,63227.0,63214.0,0.13]
[1727102534187,0.3608,63220.0,63215.0,0.02472865]
[1727102534389,0.3608,63220.0,63216.0,0.19]
[1727102534890,0.3538,63220.0,63216.0,0.19]
[1727102535799,0.3538,63220.0,63211.0,0.19]
[1727102535990,0.3538,63220.0,63216.0,0.004]
[1727102536189,0.432885,63220.0,63216.0,0.004]
[1727102536403,0.19,63218.0,63207.0,0.01592451]
[1727102536586,0.19,63218.0,63191.0,0.04716685]
[1727102536587,0.3608,63208.0,63191.0,0.19]
[1727102536787,0.3608,63202.0,63191.0,0.19]
[1727102536997,0.3608,63202.0,63197.0,0.079112]
[1727102537186,0.3608,63202.0,63196.0,0.19]
[1727102537187,0.3608,63202.0,63200.0,0.0160124]
[1727102537694,0.079112,63198.0,63190.0,0.19]
[1727102537899,0.3608,63202.0,63190.0,0.19]
[1727102537900,0.3608,63196.0,63190.0,0.19]
[1727102539395,0.3608,63196.0,63190.0,0.269122]
[1727102539699,0.3608,63202.0,63177.0,0.00237412]
[1727102539700,0.3608,63202.0,63196.0,0.079114]
[1727102539903,0.3608,63202.0,63194.0,0.19]
[1727102540399,0.3608,63202.0,63200.0,0.269109]
[1727102540795,0.3608,63209.0,63206.0,0.079102]
[1727102541998,0.3608,63209.0,63200.0,0.079109]
[1727102542206,0.3608,63202.0,63200.0,0.079109]
[1727102542588,0.3638,63209.0,63201.0,0.079108]
[1727102542799,0.3638,63209.0,63200.0,0.47468]
[1727102542800,0.3638,63209.0,63208.0,0.079099]
[1727102542994,0.3608,63209.0,63208.0,0.079099]
[1727102543501,0.3608,63217.0,63213.0,0.079093]
[1727102543695,0.3608,63217.0,63208.0,0.079099]
[1727102543889,0.3608,63211.0,63209.0,0.079098]
[1727102544086,0.3608,63211.0,63210.0,0.079097]
[1727102545598,0.3678,63211.0,63210.0,0.079097]
[1727102546699,0.007,63211.0,63210.0,0.079097]
[1727102546904,0.007,63211.0,63194.0,0.00237363]
[1727102547093,0.3608,63198.0,63194.0,0.00237363]
[1727102547289,0.269116,63195.0,63194.0,0.00237363]
[1727102547689,0.743836,63195.0,63194.0,0.00237363]
[1727102547894,0.66472,63195.0,63194.0,0.00237363]
[1727102548098,0.19,63195.0,63194.0,0.00237363]
[1727102548296,0.66472,63195.0,63194.0,0.00237363]
[1727102548698,0.191,63195.0,63194.0,0.00237363]
[1727102548906,0.001,63195.0,63194.0,0.08149063]
[1727102549104,0.001,63195.0,63194.0,0.00237363]
[1727102549601,0.001,63195.0,63194.0,0.08149063]
[1727102550207,0.001,63195.0,63194.0,0.079117]
[1727102550396,0.001,63195.0,63190.0,0.079122]
[1727102550895,0.3608,63191.0,63181.0,0.3608]
[1727102551202,0.3608,63191.0,63187.0,0.079125]
[1727102551401,0.3608,63191.0,63181.0,0.3608]
[1727102551596,0.3608,63191.0,63190.0,0.079122]
[1727102552504,0.3618,63191.0,63190.0,0.079122]
[1727102552903,0.001,63191.0,63190.0,0.079122]
[1727102553102,0.001,63191.0,63190.0,0.269122]
[1727102553306,0.001,63191.0,63190.0,0.079122]
[1727102554301,0.3608,63192.0,63191.0,0.079121]
[1727102554497,0.19,63204.0,63196.0,0.079114]
[1727102554498,0.3608,63198.0,63196.0,0.079114]
[1727102554700,0.3608,63198.0,63187.0,0.3608]
[1727102555005,0.3608,63198.0,63197.0,0.079113]
[1727102555909,0.36317424,63211.0,63197.0,0.079113]
[1727102556106,0.3608,63201.0,63191.0,0.55164]
[1727102556410,0.3608,63201.0,63180.0,0.3608]
[1727102556411,0.19,63193.0,63180.0,0.3608]
[1727102556801,0.19,63193.0,63192.0,0.079119]
[1727102557000,0.3608,63194.0,63192.0,0.079119]
[1727102557202,0.3608,63194.0,63193.0,0.079118]
[1727102557899,0.19,63198.0,63194.0,0.079117]
[1727102558100,0.3608,63195.0,63194.0,0.079117]
[1727102559011,0.3608,63201.0,63200.0,0.079109]
[1727102559400,0.00237432,63207.0,63206.0,0.079102]
[1727102559799,0.3608,63216.0,63206.0,0.439902]
[1727102560006,0.3608,63216.0,63201.0,0.079108]
[1727102560209,0.3608,63216.0,63213.0,0.079093]
[1727102560407,0.3608,63216.0,63214.0,0.079092]
[1727102560710,0.3608,63216.0,63215.0,0.079091]
[1727102560903,0.3608,63216.0,63212.0,0.079094]
[1727102561100,0.3608,63216.0,63211.0,0.19]
[1727102561101,0.3608,63217.0,63211.0,0.19]
[1727102561304,0.3608,63223.0,63221.0,0.079082]
[1727102561607,0.3608,63223.0,63222.0,0.079082]
[1727102562014,0.3608,63226.0,63224.0,0.079079]
[1727102562210,0.3608,63226.0,63225.0,0.079078]
[1727102563505,0.3608,63226.0,63217.0,0.079088]
[1727102563702,0.3608,63226.0,63213.0,0.3608]
[1727102563703,0.19,63222.0,63213.0,0.3608]
[1727102564314,0.3608,63226.0,63213.0,0.3608]
[1727102564632,0.3698,63226.0,63213.0,0.3608]
[1727102565118,0.3698,63226.0,63218.0,0.079086]
[1727102565307,0.3608,63219.0,63205.0,0.04716685]
[1727102565505,0.3608,63219.0,63200.0,0.04716685]
[1727102565506,0.3578,63212.0,63200.0,0.04716685]
[1727102565711,0.3608,63201.0,63200.0,0.079109]
[1727102566108,0.3608,63201.0,63196.0,0.00237355]
[1727102566308,0.3598,63201.0,63199.0,0.079111]
[1727102566504,0.3598,63201.0,63196.0,0.00237355]
[1727102566914,0.19,63197.0,63191.0,0.04716685]
[1727102567126,0.19,63197.0,63191.0,0.01584485]
[1727102567329,0.3598,63201.0,63186.0,0.04716685]
[1727102567507,0.3598,63201.0,63190.0,0.079121]
[1727102567711,0.3608,63195.0,63186.0,0.04716685]
[1727102568025,0.3608,63195.0,63183.0,0.04716685]
[1727102568322,0.3608,63195.0,63180.0,0.18528919]
[1727102568323,0.19,63197.0,63182.0,0.04716685]
[1727102568516,0.004,63201.0,63200.0,0.158218]
[1727102568724,0.3645,63223.0,63202.0,0.079107]
[1727102568908,0.3608,63223.0,63210.0,0.3608]
[1727102569216,0.19,63222.0,63210.0,0.439897]
[1727102569516,0.19,63216.0,63210.0,0.439897]
[1727102569924,0.3608,63223.0,63212.0,0.079094]
[1727102569925,0.5508,63223.0,63212.0,0.079094]
[1727102570716,0.3608,63223.0,63212.0,0.079094]
[1727102571126,0.3608,63219.0,63212.0,0.079094]
[1727102571615,0.1208,63226.0,63217.0,0.3608]
[1727102571920,0.3608,63231.0,63226.0,0.079077]
[1727102572121,0.3608,63231.0,63217.0,0.3608]
[1727102572122,0.3608,63231.0,63218.0,0.19]
[1727102572320,0.19,63229.0,63217.0,0.40885371]
[1727102572521,0.19,63229.0,63220.0,0.079084]
[1727102573024,0.19,63229.0,63217.0,0.3608]
[1727102573530,0.19,63229.0,63219.0,0.079086]
[1727102573823,0.19,63229.0,63217.0,0.3608]
[1727102573824,0.19,63229.0,63220.0,0.079084]
[1727102574020,0.3608,63231.0,63217.0,0.3608]
[1727102574219,0.3608,63231.0,63224.0,0.079078]
[1727102574426,0.3728,63231.0,63226.0,0.001]
[1727102574623,0.012,63231.0,63229.0,0.3608]
[1727102575425,0.36317343,63236.0,63229.0,0.3608]
[1727102575624,0.011,63231.0,63230.0,0.079072]
[1727102576312,0.00676391,63231.0,63230.0,1.232584]
[1727102576520,0.00676391,63231.0,63230.0,1.27970742]
[1727102576723,0.00676391,63231.0,63230.0,0.67970766]
[1727102577220,0.014,63231.0,63230.0,0.60063613]
[1727102577426,0.014,63231.0,63230.0,0.57823133]
[1727102577724,0.014,63231.0,63230.0,0.67968118]
[1727102578022,0.014,63231.0,63230.0,0.57923114]
[1727102578328,0.014,63231.0,63230.0,0.65830331]
[1727102578532,0.014,63231.0,63230.0,0.65830305]
[1727102578711,0.014,63231.0,63230.0,1.25830305]
[1727102578918,0.07876667,63249.0,63246.0,0.079052]
[1727102579112,0.07876667,63249.0,63235.0,0.079065]
[1727102579113,0.07876667,63248.0,63241.0,0.3608]
[1727102579312,0.07876667,63249.0,63241.0,0.3608]
[1727102579521,0.07876667,63250.0,63248.0,0.079049]
[1727102579822,0.1126,63251.0,63249.0,0.079048]
[1727102580524,0.07876667,63253.0,63250.0,0.079047]
[1727102581127,0.07876667,63254.0,63250.0,0.079047]
[1727102581522,0.01,63251.0,63250.0,0.079047]
[1727102582526,0.01,63251.0,63250.0,0.348094]
[1727102582829,0.01,63251.0,63250.0,0.427141]
[1727102583532,0.00237244,63259.0,63258.0,0.079037]
[1727102583739,0.00237244,63259.0,63258.0,0.439837]
[1727102584225,0.00237244,63259.0,63258.0,0.079037]
[1727102585134,0.01237244,63259.0,63258.0,0.080037]
[1727102586736,0.01,63259.0,63258.0,0.159074]
[1727102586939,0.01,63259.0,63258.0,0.519874]
[1727102587236,0.01,63259.0,63258.0,0.598911]
[1727102587441,0.01,63259.0,63258.0,0.519874]
[1727102587935,0.01,63259.0,63258.0,0.440837]
[1727102588247,0.01,63259.0,63258.0,0.080037]
[1727102588437,0.01,63259.0,63249.0,0.440648]
[1727102588438,0.47424,63258.0,63249.0,0.079848]
[1727102588737,0.5508,63250.0,63249.0,0.079048]
[1727102588925,0.3608,63250.0,63249.0,0.079048]
[1727102590034,0.3608,63250.0,63249.0,0.080048]
[1727102590742,0.3708,63250.0,63249.0,0.080048]
[1727102593345,1.44512,63250.0,63245.0,0.079053]
[1727102593548,1.44512,63250.0,63238.0,0.439861]
[1727102593549,0.3708,63250.0,63238.0,0.439861]
[1727102594343,0.3708,63250.0,63238.0,0.45524001]
[1727102594650,0.01,63250.0,63249.0,0.079048]
[1727102594850,0.01,63250.0,63249.0,0.158096]
[1727102595036,0.011,63250.0,63249.0,0.079048]
[1727102597450,0.012,63250.0,63249.0,0.080048]
[1727102598348,0.012,63250.0,63249.0,0.270048]
[1727102598550,0.012,63250.0,63249.0,0.080048]
[1727102599273,0.012,63250.0,63249.0,0.001]
[1727102600039,0.091047,63250.0,63249.0,0.001]
[1727102600355,0.17693941,63250.0,63249.0,0.00025372]
[1727102600542,0.09789659,63250.0,63249.0,0.00025372]
[1727102600739,0.0376293,63250.0,63249.0,0.07930172]
[1727102601346,0.10638215,63250.0,63249.0,0.07930172]
[1727102601545,0.09796284,63250.0,63249.0,0.07930172]
[1727102601853,0.0376293,63250.0,63249.0,0.15834972]
[1727102602248,0.09068736,63250.0,63249.0,0.23739772]
[1727102602450,0.012,63250.0,63249.0,0.23739772]
[1727102603554,0.09068736,63250.0,63249.0,0.23739772]
[1727102603853,0.012,63250.0,63249.0,0.71171772]
[1727102604049,0.09442615,63255.0,63254.0,0.158084]
[1727102604250,0.02562422,63255.0,63254.0,0.708884]
[1727102604551,0.1104842,63264.0,63263.0,0.079031]
[1727102604747,0.02562334,63264.0,63263.0,0.5508]
[1727102604949,0.02562334,63268.0,63263.0,0.5508]
[1727102605154,0.08614556,63267.0,63263.0,0.5508]
[1727102605355,0.08614556,63266.0,63263.0,0.5508]
[1727102605556,0.3608,63269.0,63264.0,0.079029]
[1727102605557,0.08614556,63265.0,63264.0,0.079029]
[1727102605755,0.06052222,63265.0,63264.0,0.079029]
[1727102605948,0.08614748,63268.0,63263.0,0.5508]
[1727102606253,0.3608,63269.0,63263.0,0.5508]
[1727102606254,0.08614748,63267.0,63266.0,0.079027]
[1727102606559,0.06052597,63267.0,63266.0,0.079027]
[1727102607360,0.08614748,63267.0,63263.0,0.3618]
[1727102607557,0.08614748,63266.0,63263.0,0.3618]
[1727102607757,0.08614748,63265.0,63264.0,0.079029]
[1727102607959,0.06052597,63265.0,63263.0,0.3608]
[1727102608260,0.5503082,63269.0,63263.0,0.3608]
[1727102608261,0.08614748,63264.0,63263.0,0.3608]
[1727102608455,0.02562151,63264.0,63263.0,0.439831]
[1727102608764,0.09455725,63267.0,63264.0,0.079029]
[1727102609157,0.09455725,63267.0,63265.0,0.079028]
[1727102609361,0.02562211,63266.0,63263.0,0.56613839]
[1727102609672,0.001,63266.0,63263.0,0.56713839]
[1727102609958,0.001,63266.0,63265.0,0.079028]
[1727102610547,0.00185725,63272.0,63271.0,0.079021]
[1727102610962,0.08620338,63275.0,63271.0,0.079021]
[1727102611257,0.02562043,63274.0,63265.0,0.001]
[1727102611460,0.079022,63271.0,63265.0,0.001]
[1727102611766,0.5508,63275.0,63268.0,0.079023]
[1727102611767,0.02562043,63270.0,63268.0,0.079023]
[1727102612058,0.02562043,63269.0,63268.0,0.079023]
[1727102612362,0.10464443,63269.0,63265.0,0.001]
[1727102612657,0.02562043,63268.0,63263.0,0.37613839]
[1727102612961,0.079026,63267.0,63263.0,0.37613839]
[1727102613148,0.209029,63265.0,63253.0,0.1215]
[1727102613353,0.02562303,63264.0,63262.0,0.079032]